Cogmind - Beta 13 @@@ ROGUE MODE // 2024.07.16 @ 00:16:01 Player: APerTAS Result: Destroyed by G-47 Trooper with Particle Gun Performance ------------- Evolutions (2) 1000 Regions Visited (7) 1400 Robots Destroyed (0) 0 Value Destroyed (0) 0 Prototype IDs (23) 460 Alien Tech Used (0) 0 Bonus (1064) 1064 TOTAL SCORE: 3924 Bonus ------- Pacifist 564 Entered Garrisons 200 Aligned with FarCom 300 Cogmind --------- Core Integrity 0/550 Matter 170/300 Energy 98/100 System Corruption 0% Temperature Cool (18) Movement Core (50) Location -8/Garrison Parts ------- > --- POWER (5) -------- (None) > --- PROPULSION (2) --- (None) > --- UTILITY (2) ------ (None) > --- WEAPON (2) ------- (None) > --- INVENTORY (5) ---- Authchip [R/Combat] Peak State ------------ None Favorites ----------- Power None Propulsion None Utility None Weapon None Build | -11 -10 -9 -9 -9 -8 -8 -8 ------- Run | Yrd Mat Mat Min Exi Min Mat Gar Slots Evolved 4 | . . 2 . . . 2 . Power 4 | . . 2 . . . 2 . Propulsion . | . . . . . . . . Utility . | . . . . . . . . Weapon . | . . . . . . . . Parts Attached . | . . . . . . . . Power . | . . . . . . . . Engine . | . . . . . . . . Core . | . . . . . . . . Reactor . | . . . . . . . . Propulsion . | . . . . . . . . Treads . | . . . . . . . . Leg . | . . . . . . . . Wheel . | . . . . . . . . Hover . | . . . . . . . . Flight . | . . . . . . . . Utility . | . . . . . . . . Device . | . . . . . . . . Storage . | . . . . . . . . Processor . | . . . . . . . . Hackware . | . . . . . . . . Protection . | . . . . . . . . Artifact . | . . . . . . . . Weapon . | . . . . . . . . Energy Gun . | . . . . . . . . Energy Cannon . | . . . . . . . . Ballistic Gun . | . . . . . . . . Ballistic Cannon . | . . . . . . . . Launcher . | . . . . . . . . Special Weapon . | . . . . . . . . Impact Weapon . | . . . . . . . . Slashing Weapon . | . . . . . . . . Piercing Weapon . | . . . . . . . . Special Melee Weapon . | . . . . . . . . Unidentified Prototypes . | . . . . . . . . Parts Lost . | . . . . . . . . Power . | . . . . . . . . Propulsion . | . . . . . . . . Utility . | . . . . . . . . Weapon . | . . . . . . . . Highest Loss Streak . | . . . . . . . . To Critical Strikes . | . . . . . . . . Average Slot Usage (%) . | . . . . . . . . Naked Turns 476 | . 33 25 55 123 77 6 157 Heaviest Build . | . . . . . . . . Greatest Support 3 | 3 3 3 3 3 3 3 3 Greatest Overweight (x) . | . . . . . . . . Average Overweight (x) . | . . . . . . . . Largest Inventory Capacity 5 | 5 5 5 5 5 5 5 5 Average Capacity 5 | 5 5 5 5 5 5 5 5 Most Carried 1 | . . . . . . . 1 Average Carried . | . . . . . . . . Final Capacity 5 | 5 5 5 5 5 5 5 5 Final Carried 1 | . . . . . . . 1 Class Distribution -------------------- 100% | Mutant Dominant Class ---------------- Mutant | -10/Materials Mutant | -9/Materials Mutant | -9/Mines Mutant | -9/Exiles Mutant | -8/Mines Mutant | -8/Materials Mutant | -8/Garrison Resources | -11 -10 -9 -9 -9 -8 -8 -8 ----------- Run | Yrd Mat Mat Min Exi Min Mat Gar Matter Collected 66 | 66 . . . . . . . Remotely . | . . . . . . . . Salvage Created . | . . . . . . . . Parts . | . . . . . . . . Haulers Intercepted . | . . . . . . . . Recyclers Shooed . | . . . . . . . . Parts Field Recycled . | . . . . . . . . Retrieved Matter . | . . . . . . . . Parts Self-Destructed . | . . . . . . . . Prevented . | . . . . . . . . Kills | -11 -10 -9 -9 -9 -8 -8 -8 ------- Run | Yrd Mat Mat Min Exi Min Mat Gar Combat Hostiles Destroyed . | . . . . . . . . Classes Destroyed . | . . . . . . . . Best Kill Streak . | . . . . . . . . Combat Bots Only . | . . . . . . . . Max Kills in Single Turn . | . . . . . . . . Gunslinging . | . . . . . . . . Exploded . | . . . . . . . . Melee . | . . . . . . . . Uniques/NPCs Destroyed . | . . . . . . . . Combat | -11 -10 -9 -9 -9 -8 -8 -8 -------- Run | Yrd Mat Mat Min Exi Min Mat Gar Hostile Shots Fired 132 | . . . . . 65 . 67 Missed 55 | . . . . . 32 . 23 Damage Taken 911 | . . . . . 347 . 564 Core 911 | . . . . . 347 . 564 Absorbed by Shields 105 | . . . . . . . 105 Core Remaining (%) 71 | 100 100 . . . 13 . . Volleys Fired . | . . . . . . . . Largest . | . . . . . . . . Hottest . | . . . . . . . . Shots Fired . | . . . . . . . . Gun . | . . . . . . . . Cannon . | . . . . . . . . Launcher . | . . . . . . . . Special . | . . . . . . . . Kinetic . | . . . . . . . . Thermal . | . . . . . . . . Explosive . | . . . . . . . . Electromagnetic . | . . . . . . . . Robot Hit Streak . | . . . . . . . . Robot Miss Streak . | . . . . . . . . Penetration Max . | . . . . . . . . Secondary Targets . | . . . . . . . . Shots Hit Robots . | . . . . . . . . Core Hits 1 | . . . . . . . 1 Critical Kills . | . . . . . . . . Critical Parts Destroyed . | . . . . . . . . Critical Strikes . | . . . . . . . . Melee Attacks . | . . . . . . . . Impact . | . . . . . . . . Slashing . | . . . . . . . . Piercing . | . . . . . . . . Sneak Attacks . | . . . . . . . . Combat Hostiles . | . . . . . . . . Follow-up Attacks . | . . . . . . . . Damage Inflicted 9 | . . . . . . . 9 Guns . | . . . . . . . . Cannons . | . . . . . . . . Explosions . | . . . . . . . . Melee . | . . . . . . . . Ramming 9 | . . . . . . . 9 Kinetic . | . . . . . . . . Thermal . | . . . . . . . . Explosive . | . . . . . . . . Electromagnetic . | . . . . . . . . Impact . | . . . . . . . . Slashing . | . . . . . . . . Piercing . | . . . . . . . . Highest Corruption . | . . . . . . . . Average Corruption . | . . . . . . . . Corruption Purged . | . . . . . . . . Corruption Blocked . | . . . . . . . . Overload Shots . | . . . . . . . . Overflow Damage . | . . . . . . . . Projectiles . | . . . . . . . . Explosions . | . . . . . . . . Melee . | . . . . . . . . Knockbacks . | . . . . . . . . Impact . | . . . . . . . . Kinetic . | . . . . . . . . Secondary . | . . . . . . . . Self-Inflicted Damage 4 | . . . . . . . 4 Shots . | . . . . . . . . Rammed 1 | . . . . . . . 1 Targets Rammed 1 | . . . . . . . 1 Kicked . | . . . . . . . . Crushed . | . . . . . . . . Highest Temperature . | . . . . . . . . Average Temperature . | . . . . . . . . Received Heat Transfer 231 | . . . . . 99 . 132 Siege Activations . | . . . . . . . . Robots Corrupted . | . . . . . . . . Combat Hostiles . | . . . . . . . . Parts Fried . | . . . . . . . . Impact Corruptions . | . . . . . . . . Robots Melted . | . . . . . . . . Combat Hostiles . | . . . . . . . . Parts Melted . | . . . . . . . . Heat Transferred . | . . . . . . . . Parts Sabotaged . | . . . . . . . . Parts Stolen . | . . . . . . . . Parts Stripped . | . . . . . . . . Power Chain Reactions . | . . . . . . . . Alert | -11 -10 -9 -9 -9 -8 -8 -8 ------- Run | Yrd Mat Mat Min Exi Min Mat Gar Peak Influence 103 | . . 15 5 . 60 23 103 Initial 23 | . . . 5 . . 23 14 Average 29 | . . 1 5 . 34 23 47 Maximum Alert Level . | . . . . . . . . Low Security (%) 100 | 100 100 100 100 . 100 100 100 Level 1 . | . . . . . . . . Level 2 . | . . . . . . . . Level 3 . | . . . . . . . . Level 4 . | . . . . . . . . Level 5 . | . . . . . . . . High Security . | . . . . . . . . Max Security . | . . . . . . . . Squads Dispatched 1 | . . . . . 1 . . Investigation 1 | . . . . . 1 . . Extermination . | . . . . . . . . Reinforcement . | . . . . . . . . Assault . | . . . . . . . . Garrison . | . . . . . . . . Intercept . | . . . . . . . . Searches Triggered . | . . . . . . . . Construction Impeded . | . . . . . . . . Haulers Reinforced . | . . . . . . . . Active Scanning Responses . | . . . . . . . . Cargo Convoy Interrupts . | . . . . . . . . Stealth | -11 -10 -9 -9 -9 -8 -8 -8 --------- Run | Yrd Mat Mat Min Exi Min Mat Gar Distress Signals . | . . . . . . . . Communications Jammed . | . . . . . . . . Distress Signals . | . . . . . . . . Times Spotted 21 | . . 2 . . 10 . 9 Peak Tracking Total 8 | . . 2 . . 7 . 8 Tactical Retreats 4 | . . . . . 2 . 2 Traps | -11 -10 -9 -9 -9 -8 -8 -8 ------- Run | Yrd Mat Mat Min Exi Min Mat Gar Traps Triggered 4 | . . . . . . . 4 Indirectly . | . . . . . . . . Trap Hack Attempts . | . . . . . . . . Triggered . | . . . . . . . . Disarmed . | . . . . . . . . Reprogrammed . | . . . . . . . . Reused . | . . . . . . . . Traps Extracted . | . . . . . . . . Installed . | . . . . . . . . Triggered . | . . . . . . . . Machines | -11 -10 -9 -9 -9 -8 -8 -8 ---------- Run | Yrd Mat Mat Min Exi Min Mat Gar Machines Disabled . | . . . . . . . . Max in Single Turn . | . . . . . . . . Machines Repaired . | . . . . . . . . Machines Dismantled . | . . . . . . . . Machines Sabotaged . | . . . . . . . . Overloaded Fab Kills . | . . . . . . . . Hacking | -11 -10 -9 -9 -9 -8 -8 -8 --------- Run | Yrd Mat Mat Min Exi Min Mat Gar Machines Accessed 5 | . . . 1 1 1 1 1 Terminals 2 | . . . . . 1 . 1 Fabricators . | . . . . . . . . Repair Stations . | . . . . . . . . Recycling Units . | . . . . . . . . Scanalyzers . | . . . . . . . . Garrison Access 1 | . . . . . . 1 . Total Hacks 6 | . . . 1 1 2 1 1 Successful 4 | . . . 1 1 . 1 1 Failed 2 | . . . . . 2 . . Catastrophic 2 | . . . . . 2 . . Database Lockouts . | . . . . . . . . Manual 3 | . . . . 1 2 . . Terminals 3 | . . . . . 2 . 1 Fabricators . | . . . . . . . . Repair Stations . | . . . . . . . . Recycling Units . | . . . . . . . . Scanalyzers . | . . . . . . . . Garrison Access 1 | . . . . . . 1 . Terminal Hacks 3 | . . . 1 1 . . 1 Open Door 1 | . . . 1 . . . . Emergency Access Points 1 | . . . . . . . 1 Derelict Proto ID Bank 1 | . . . . 1 . . . Fabricator Hacks . | . . . . . . . . Repair Station Hacks . | . . . . . . . . Recycling Unit Hacks . | . . . . . . . . Scanalyzer . | . . . . . . . . Garrison Access Hacks 1 | . . . . . . 1 . Unlock Access 1 | . . . . . . 1 . Unauthorized Hacks . | . . . . . . . . Terminals . | . . . . . . . . Fabricators . | . . . . . . . . Repair Stations . | . . . . . . . . Recycling Units . | . . . . . . . . Scanalyzers . | . . . . . . . . Garrison Access . | . . . . . . . . Data Cores Recovered . | . . . . . . . . Used . | . . . . . . . . Hacking Detections 2 | . . . . . 1 . 1 Full Trace Events 1 | . . . . . 1 . . Feedback Events . | . . . . . . . . Feedback Blocked . | . . . . . . . . Robot Schematics Acquired . | . . . . . . . . Robots Built . | . . . . . . . . Authchips . | . . . . . . . . Time . | . . . . . . . . Total Robot Build Rating . | . . . . . . . . Part Schematics Acquired . | . . . . . . . . Parts Built . | . . . . . . . . Authchips . | . . . . . . . . Time . | . . . . . . . . Total Part Build Rating . | . . . . . . . . Parts Repaired . | . . . . . . . . Time . | . . . . . . . . Parts Recycled . | . . . . . . . . Recycled Matter . | . . . . . . . . Retrieved Matter . | . . . . . . . . Retrieved Components . | . . . . . . . . Parts Scanalyzed . | . . . . . . . . Part Schematics Acquired . | . . . . . . . . Parts Damaged . | . . . . . . . . Bothacking | -11 -10 -9 -9 -9 -8 -8 -8 ------------ Run | Yrd Mat Mat Min Exi Min Mat Gar Used RIF Installer . | . . . . . . . . Robots Hacked . | . . . . . . . . Non-combat . | . . . . . . . . Combat . | . . . . . . . . Robot Hacks Applied . | . . . . . . . . Relay Couplers Released . | . . . . . . . . Fabnet Peak Effective % . | . . . . . . . . Robots Rewired . | . . . . . . . . Allies Hacked . | . . . . . . . . Hacks Repelled . | . . . . . . . . Allies | -11 -10 -9 -9 -9 -8 -8 -8 -------- Run | Yrd Mat Mat Min Exi Min Mat Gar Total Allies . | . . . . . . . . Largest Group . | . . . . . . . . Highest-Rated Group . | . . . . . . . . Highest-Rated Ally . | . . . . . . . . Total Orders . | . . . . . . . . Ally Attacks . | . . . . . . . . Total Damage . | . . . . . . . . Kills . | . . . . . . . . Allies Corrupted . | . . . . . . . . Allies Melted . | . . . . . . . . Intel | -11 -10 -9 -9 -9 -8 -8 -8 ------- Run | Yrd Mat Mat Min Exi Min Mat Gar Robot Analysis Total . | . . . . . . . . Derelict Logs Recovered 1 | . . . 1 . . . . Drone Launches . | . . . . . . . . Drone Recoveries . | . . . . . . . . Exploration | -11 -10 -9 -9 -9 -8 -8 -8 ------------- Run | Yrd Mat Mat Min Exi Min Mat Gar Turns Passed 487 | 11 33 25 55 123 77 6 157 Spaces Moved 878 | 22 65 50 109 246 154 10 222 Core 878 | 22 65 50 109 246 154 10 222 Treads . | . . . . . . . . Legs . | . . . . . . . . Wheels . | . . . . . . . . Hover . | . . . . . . . . Flight . | . . . . . . . . Fastest Speed 50 | 50 50 50 50 50 50 50 50 Average Speed 50 | 50 50 50 50 50 50 50 50 Slowest Speed 50 | 50 50 50 50 50 50 50 50 Overloaded Moves . | . . . . . . . . Propulsion Burnouts . | . . . . . . . . Robots Hopped . | . . . . . . . . Cave-ins Triggered . | . . . . . . . . Exploration Rate (%) 25 | 3 20 8 11 62 55 4 42 Regions Visited 7 Branch Regions 3 Pre-discovered Areas 1 | . . . 1 . . . . Known Exits Taken 1 | . . . . . . 1 . Unknown Exits Taken 6 | 1 1 1 1 1 1 . . Scrap Searched 1 | . . . . . 1 . . Spaces Dug . | . . . . . . . . Terrain Destroyed . | . . . . . . . . Melee . | . . . . . . . . Projectile . | . . . . . . . . AOE . | . . . . . . . . Terrain Rammed . | . . . . . . . . Walls Destroyed . | . . . . . . . . Machines Disabled . | . . . . . . . . Actions | -11 -10 -9 -9 -9 -8 -8 -8 --------- Run | Yrd Mat Mat Min Exi Min Mat Gar Total 918 | 21 64 49 108 245 153 10 268 Wait . | . . . . . . . . Move 872 | 21 64 49 108 245 153 10 222 Hop . | . . . . . . . . Pick Up 1 | . . . . . . . 1 Fast Attach . | . . . . . . . . Attach . | . . . . . . . . Detach . | . . . . . . . . Swap . | . . . . . . . . Drop . | . . . . . . . . Fire . | . . . . . . . . Melee . | . . . . . . . . Ram 1 | . . . . . . . 1 Kick . | . . . . . . . . Crush . | . . . . . . . . Escape Stasis 44 | . . . . . . . 44 Rewire . | . . . . . . . . Trap . | . . . . . . . . Miscellaneous . | . . . . . . . . Route ------- -11/Scrapyard -10/Materials -9/Materials -9/Mines -9/Exiles -8/Mines (discovered 2 exits: *Mat x2) -8/Materials -8/Garrison (discovered 1 exit: [*Mat]) History --------- Turn | Location | Event 4 | -11/Scrapyard | Discovered new exit (range 13) 12 | -11/Scrapyard | Entered Materials 37 | -10/Materials | Discovered new exit (range 15) 45 | -10/Materials | Entered another Materials area 45 | -9/Materials | Evolved 2 slots: Power x2 65 | -9/Materials | Discovered new exit (range 8) 70 | -9/Materials | Entered Mines 75 | -9/Mines | Met a Derelict who couldn't figure out how to use a Trap Extractor 83 | -9/Mines | Assembled infested the area 96 | -9/Mines | Deemed a non-threat by the Exiles lab entrance 96 | -9/Mines | Discovered new exit (range 5) 110 | -9/Mines | Learned location of Storage (-9) 125 | -9/Mines | Entered Exiles 138 | -9/Exiles | Met 8R-AWN 146 | -9/Exiles | Met EX-HEX 160 | -9/Exiles | Met EX-BIN 173 | -9/Exiles | Aligned with FarCom system 174 | -9/Exiles | Given EX-Vault access code 187 | -9/Exiles | Opened EX-Vault 199 | -9/Exiles | Warned to stay clear of 0b10 Research branches 214 | -9/Exiles | Met EX-DEC 241 | -9/Exiles | Discovered new exit (range 14) 248 | -9/Exiles | Entered Mines 294 | -8/Mines | Core integrity fell below 50% 305 | -8/Mines | Build established: Mutant 313 | -8/Mines | Core integrity fell below 20% 321 | -8/Mines | Discovered new exit (range 9) 325 | -8/Mines | Discovered new exit (range 13) 325 | -8/Mines | Entered Materials 325 | -8/Materials | Evolved 2 slots: Power x2 331 | -8/Materials | Identified exit to Garrison 331 | -8/Materials | Entered Garrison 405 | -8/Garrison | Discovered new exit (range 13) 453 | -8/Garrison | Core integrity fell below 50% 467 | -8/Garrison | Triggered checkpoint 468 | -8/Garrison | Core integrity fell below 20% 488 | -8/Garrison | Destroyed by G-47 Trooper with Particle Gun Last Messages --------------- 00467_ Beams of light sweep through the air. An alarm sounds. 00473_ Triggered Stasis Trap. 00473_ A bubble of rippling energy engulfs the area. 00473_ Field strength at 94. 00473_ Field strength at 88. 00474_ Field strength at 82. 00475_ Field strength at 76. 00476_ Field strength at 70. 00477_ Field strength at 64. 00478_ Field strength at 58. 00479_ Field strength at 52. 00480_ Field strength at 42. 00481_ Field strength at 34. 00482_ Field strength at 28. 00483_ Field strength at 18. 00484_ Field strength at 12. 00485_ Field strength at 6. 00486_ Stasis field depleted. Map ----- +----------------------------------------------------+ | ?????????????????????????????????????????????????? | | ?????????????????????????????????????????????????? | | ?????????????????????????????????????????????????? | | ?????????????????????????????????????????????????? | | ?????????????????????????????????????????????????? | | ?????????????????????????????????????????????????? | | ?????????????????????????????????????????????????? | | ?????????????????????????????????????????????????? | | ??????????????????????+??????????????????????????? | | ?????????????????????????????????????????????????? | | ??????????????????????? ???????????????????????? | | ??????????????????????# ???????g???????????????? | | ??????????????????????# ????????+??????????????? | | ??????????????????????# ???????g???????????????? | | ??????????????????????# #??????????????????????? | | ??????????????????????# +??+???????????????????? | | ??????????????????????# #??????????????????????? | | ??????????????????????# #??????????????????????? | | ??????????????????????# #??????????????????????? | | ??????????????????????# #??????????????????????? | | ??????????????????????# #??????????????????????? | | ??????????????????????# +??+???????????????????? | | ??????????????????????+ +??+???????????????????? | | ??????????+???????????# #????+?????????????????? | | ????????g?g???????????# #??????????????????????? | | ?##+###""""######+##### @#??????????????????????? | | ## ^ #??????????????????????? | | g g +??????????????????????? | | ? l gs #??????????????????????? | | ?# ?# ## ###########??????????????????????? | | ?# ## ## gg###??????????????????????????????? | | ?" h #??????????????????????????????? | | ?" #??????????????????????????????? | | ?" #??????????????????????????????? | | ?" #??????????????????????????????? | | ?# ## ## ######???????????????????????????? | | ?# ## ## ####T#####???????????????????????? | | ?+ #???????????????????????? | | ?+ +???????????????????????? | | ?# ####+## #???????????????????????? | | ?# ##""""## ##?????# #???????????????????????? | | ?# #??????# #??????# #???????????????????????? | | ?# #?+????# #??????# #??????????+????????????? | | ?# #??????# ##### ## #???????????????????????? | | ?+ +??????# + ## ##########"""####???????? | | ?# #??????# ##### + + + #???????? | | ?# #??????# #??????# ##### ######### ###?????? | | ## #??????# ######## #???# #???????# #"#?????? | | #??????# ##### #???????# "#?????? | | #??????# ^ ^ #???????# "#?????? | +----------------------------------------------------+ Best States ------------- Heat Dissipation 31 Energy Generation 5 Energy Capacity 100 Matter Stores 170 Matter Capacity 300 Sight Range 16 Terrain Scan Density 10 Evasion (%) 50 Authchip Count 1 Item Schematics ----------------- None Robot Schematics ------------------ None Fabricated ------------ Nothing Alien Tech Used ----------------- None Achievements -------------- None Challenges ------------ None Game ------ Seed StealthXenonGravjet Manual? 0 Play Time 00:09:08 Cumulative 19.0 hours Start 2024.07.16 @ 00:08:15 End 2024.07.16 @ 00:16:01 Sessions 1 Manual Loads 0 Difficulty Rogue Special Mode None Game No. 58 Rogue 58 Adventurer 0 Explorer 0 Win Type - Total 0 Types 0/0/0/0/0/0/0/0/0 Lore% 25 Gallery% 25 Achievement% 23 Wizard Run 0 Options --------- Layout 1 ASCII 0 Keyboard 0 Movement Arrows Keybinds 0 Fullscreen 1 Font 28/Dina Map View 50x43 Zoom Use 0% Tactical HUD 1 Map Filters NONE Filters NONE Steam X RUN: 9f5f357e-f73f-4490-90f2-03024fe78709